[Event "Titled Tuesday Blitz April 12 Early 2022"]
[White "Narayanan, Srinath"]
[Black "Indjic, Aleksandar"]
[WhiteFideId "5018420"]
[BlackFideId "911925"]
[WhiteElo "2472"]
[BlackElo "2616"]
[Result "0-1"]
[Round "11"]
[TimeControl "180+1"]
[Date "2022.04.12"]
[WhiteClock "0:00:01"]
[BlackClock "0:00:30"]

1. Nf3 {[%clk 0:03:00]}  d5 {[%clk 0:02:56]} 2. e3 {[%clk 0:03:00]}  c5 {[%clk 0:02:53]} 3. d4 {[%clk 0:02:55]}  Nf6 {[%clk 0:02:52]} 4. dxc5 {[%clk 0:02:54]}  e6 {[%clk 0:02:48]} 5. c4 {[%clk 0:02:53]}  Bxc5 {[%clk 0:02:46]} 6. Nc3 {[%clk 0:02:53]}  Nc6 {[%clk 0:02:46]} 7. cxd5 {[%clk 0:02:51]}  exd5 {[%clk 0:02:45]} 8. Bb5 {[%clk 0:02:51]}  O-O {[%clk 0:02:44]} 9. O-O {[%clk 0:02:52]}  Bg4 {[%clk 0:02:39]} 10. Bxc6 {[%clk 0:02:45]}  bxc6 {[%clk 0:02:38]} 11. b3 {[%clk 0:02:46]}  Bd6 {[%clk 0:02:32]} 12. Bb2 {[%clk 0:02:46]}  c5 {[%clk 0:02:27]} 13. h3 {[%clk 0:02:41]}  Bh5 {[%clk 0:02:26]} 14. g4 {[%clk 0:02:01]}  Bg6 {[%clk 0:02:23]} 15. Rc1 {[%clk 0:01:59]}  h5 {[%clk 0:02:19]} 16. Nh4 {[%clk 0:01:37]}  Bh7 {[%clk 0:01:29]} 17. Kg2 {[%clk 0:01:26]}  hxg4 {[%clk 0:01:25]} 18. hxg4 {[%clk 0:01:27]}  Be5 {[%clk 0:01:23]} 19. Na4 {[%clk 0:01:13]}  Be4+ {[%clk 0:01:21]} 20. f3 {[%clk 0:01:13]}  Nxg4 {[%clk 0:01:21]} 21. Qe1 {[%clk 0:01:11]}  Qg5 {[%clk 0:01:11]} 22. fxe4 {[%clk 0:00:57]}  Nxe3+ {[%clk 0:01:08]} 23. Kf3 {[%clk 0:00:51]}  Nxf1 {[%clk 0:00:58]} 24. Bxe5 {[%clk 0:00:50]}  Nd2+ {[%clk 0:00:56]} 25. Ke2 {[%clk 0:00:43]}  Nxe4 {[%clk 0:00:56]} 26. Nf3 {[%clk 0:00:30]}  Qg2+ {[%clk 0:00:55]} 27. Ke3 {[%clk 0:00:30]}  f5 {[%clk 0:00:45]} 28. Qg1 {[%clk 0:00:22]}  f4+ {[%clk 0:00:42]} 29. Bxf4 {[%clk 0:00:19]}  d4+ {[%clk 0:00:42]} 30. Kxe4 {[%clk 0:00:11]}  Rae8+ {[%clk 0:00:41]} 31. Kd5 {[%clk 0:00:10]}  Qxf3+ {[%clk 0:00:40]} 32. Kxc5 {[%clk 0:00:10]}  Qxf4 {[%clk 0:00:38]} 33. Kb4 {[%clk 0:00:08]}  Qd6+ {[%clk 0:00:37]} 34. Nc5 {[%clk 0:00:06]}  Rc8 {[%clk 0:00:35]} 35. Qg5 {[%clk 0:00:03]}  d3 {[%clk 0:00:32]} 36. Rg1 {[%clk 0:00:01]}  Rf4+ {[%clk 0:00:30]} 0-1


[Site "https://www.chess.com"]

[Event "Titled Tuesday Blitz April 12 Early 2022"]
[White "Nogerbek, Kazybek"]
[Black "Papadiamandis, Elliot"]
[WhiteFideId "13710427"]
[BlackFideId "36074160"]
[WhiteElo "2466"]
[BlackElo "2088"]
[Result "1-0"]
[Round "11"]
[TimeControl "180+1"]
[Date "2022.04.12"]
[WhiteClock "0:00:27"]
[BlackClock "0:00:21"]

1. c4 {[%clk 0:03:00]}  d5 {[%clk 0:02:59]} 2. cxd5 {[%clk 0:02:56]}  Nf6 {[%clk 0:02:59]} 3. e4 {[%clk 0:02:53]}  c6 {[%clk 0:02:59]} 4. dxc6 {[%clk 0:02:53]}  Nxc6 {[%clk 0:03:00]} 5. Nc3 {[%clk 0:02:54]}  e5 {[%clk 0:03:00]} 6. Be2 {[%clk 0:02:50]}  Bc5 {[%clk 0:02:59]} 7. d3 {[%clk 0:02:47]}  Qb6 {[%clk 0:02:48]} 8. Na4 {[%clk 0:02:28]}  Qa5+ {[%clk 0:02:08]} 9. Bd2 {[%clk 0:02:25]}  Bb4 {[%clk 0:02:09]} 10. Nc3 {[%clk 0:02:25]}  O-O {[%clk 0:02:05]} 11. h3 {[%clk 0:02:21]}  Qb6 {[%clk 0:01:59]} 12. Nf3 {[%clk 0:02:17]}  h6 {[%clk 0:01:57]} 13. O-O {[%clk 0:02:14]}  Rd8 {[%clk 0:01:56]} 14. a3 {[%clk 0:02:10]}  Be7 {[%clk 0:01:53]} 15. Be3 {[%clk 0:02:08]}  Qxb2 {[%clk 0:01:49]} 16. Na4 {[%clk 0:02:08]}  Qb5 {[%clk 0:01:49]} 17. d4 {[%clk 0:02:04]}  Qa5 {[%clk 0:01:50]} 18. d5 {[%clk 0:02:04]}  Nxe4 {[%clk 0:01:46]} 19. Qc2 {[%clk 0:02:02]}  Bf5 {[%clk 0:01:13]} 20. dxc6 {[%clk 0:02:01]}  Ng3 {[%clk 0:01:12]} 21. Qb2 {[%clk 0:01:57]}  Nxe2+ {[%clk 0:01:10]} 22. Qxe2 {[%clk 0:01:58]}  Qxa4 {[%clk 0:01:10]} 23. cxb7 {[%clk 0:01:57]}  Rab8 {[%clk 0:01:10]} 24. Nxe5 {[%clk 0:01:53]}  Bf6 {[%clk 0:01:11]} 25. f4 {[%clk 0:01:26]}  Rxb7 {[%clk 0:01:10]} 26. Rad1 {[%clk 0:01:23]}  Rdb8 {[%clk 0:01:08]} 27. Bd4 {[%clk 0:01:21]}  Rb3 {[%clk 0:01:04]} 28. Qh5 {[%clk 0:01:17]}  Bg6 {[%clk 0:00:58]} 29. Nxg6 {[%clk 0:01:15]}  Bxd4+ {[%clk 0:00:57]} 30. Kh1 {[%clk 0:01:15]}  Bf6 {[%clk 0:00:56]} 31. Ne5 {[%clk 0:01:12]}  R8b7 {[%clk 0:00:50]} 32. Qf5 {[%clk 0:01:11]}  Rb2 {[%clk 0:00:45]} 33. Ng4 {[%clk 0:01:06]}  Be7 {[%clk 0:00:43]} 34. Rd3 {[%clk 0:01:02]}  Rb1 {[%clk 0:00:41]} 35. Rxb1 {[%clk 0:00:58]}  Rxb1+ {[%clk 0:00:42]} 36. Kh2 {[%clk 0:00:58]}  Rb8 {[%clk 0:00:40]} 37. Rg3 {[%clk 0:00:58]}  Qa6 {[%clk 0:00:25]} 38. Ne5 {[%clk 0:00:55]}  Qe6 {[%clk 0:00:26]} 39. Qh5 {[%clk 0:00:45]}  Bd6 {[%clk 0:00:23]} 40. Re3 {[%clk 0:00:39]}  Re8 {[%clk 0:00:22]} 41. Kh1 {[%clk 0:00:34]}  Qd5 {[%clk 0:00:20]} 42. Rd3 {[%clk 0:00:29]}  Qe6 {[%clk 0:00:20]} 43. Rxd6 {[%clk 0:00:28]}  Qe7 {[%clk 0:00:15]} 44. Rd7 {[%clk 0:00:28]}  Qe6 {[%clk 0:00:15]} 45. Qxf7+ {[%clk 0:00:27]}  Qxf7 {[%clk 0:00:15]} 46. Nxf7 {[%clk 0:00:28]}  Re1+ {[%clk 0:00:15]} 47. Kh2 {[%clk 0:00:28]}  Re3 {[%clk 0:00:16]} 48. Rxa7 {[%clk 0:00:27]}  Re4 {[%clk 0:00:16]} 49. Kg3 {[%clk 0:00:27]}  Re3+ {[%clk 0:00:17]} 50. Kg4 {[%clk 0:00:28]}  Rb3 {[%clk 0:00:17]} 51. Ne5 {[%clk 0:00:28]}  Kh7 {[%clk 0:00:17]} 52. a4 {[%clk 0:00:27]}  Rb2 {[%clk 0:00:17]} 53. g3 {[%clk 0:00:27]}  Rb3 {[%clk 0:00:18]} 54. a5 {[%clk 0:00:27]}  h5+ {[%clk 0:00:18]} 55. Kh4 {[%clk 0:00:27]}  Kh6 {[%clk 0:00:19]} 56. Ra6+ {[%clk 0:00:27]}  Kh7 {[%clk 0:00:19]} 57. Rb6 {[%clk 0:00:28]}  Ra3 {[%clk 0:00:19]} 58. a6 {[%clk 0:00:29]}  Ra4 {[%clk 0:00:20]} 59. Nf3 {[%clk 0:00:28]}  g6 {[%clk 0:00:20]} 60. Ng5+ {[%clk 0:00:29]}  Kh6 {[%clk 0:00:21]} 61. Nf7+ {[%clk 0:00:25]}  Kg7 {[%clk 0:00:21]} 62. Ne5 {[%clk 0:00:26]}  Kh7 {[%clk 0:00:20]} 63. Rxg6 {[%clk 0:00:26]}  Ra5 {[%clk 0:00:20]} 64. Kxh5 {[%clk 0:00:26]}  Rc5 {[%clk 0:00:18]} 65. g4 {[%clk 0:00:27]}  Rc7 {[%clk 0:00:18]} 66. h4 {[%clk 0:00:27]}  Re7 {[%clk 0:00:19]} 67. Rh6+ {[%clk 0:00:28]}  Kg7 {[%clk 0:00:19]} 68. g5 {[%clk 0:00:28]}  Re8 {[%clk 0:00:19]} 69. Kg4 {[%clk 0:00:28]}  Rf8 {[%clk 0:00:19]} 70. h5 {[%clk 0:00:28]}  Re8 {[%clk 0:00:20]} 71. a7 {[%clk 0:00:29]}  Re7 {[%clk 0:00:20]} 72. Rg6+ {[%clk 0:00:27]}  Kh7 {[%clk 0:00:21]} 73. a8=Q {[%clk 0:00:28]}  Re8 {[%clk 0:00:21]} 74. Qb7+ {[%clk 0:00:27]}  Re7 {[%clk 0:00:21]} 75. Qxe7+ {[%clk 0:00:27]} 1-0


[Site "https://www.chess.com"]

[Event "Titled Tuesday Blitz April 12 Early 2022"]
[White "Nozdrachev, Leonid"]
[Black "Itkis, Boris"]
[WhiteFideId "24113433"]
[BlackFideId "1209167"]
[WhiteElo "2242"]
[BlackElo "2207"]
[Result "1-0"]
[Round "11"]
[TimeControl "180+1"]
[Date "2022.04.13"]
[WhiteClock "0:00:05"]
[BlackClock "0:00:02"]

1. a3 {[%clk 0:03:00]}  h6 {[%clk 0:02:58]} 2. h4 {[%clk 0:02:58]}  Nf6 {[%clk 0:02:57]} 3. e3 {[%clk 0:02:56]}  d5 {[%clk 0:02:55]} 4. b4 {[%clk 0:02:56]}  e6 {[%clk 0:02:55]} 5. g4 {[%clk 0:02:55]}  a5 {[%clk 0:02:54]} 6. b5 {[%clk 0:02:54]}  b6 {[%clk 0:02:50]} 7. Bb2 {[%clk 0:02:54]}  Bb7 {[%clk 0:02:50]} 8. Rh3 {[%clk 0:02:53]}  Nbd7 {[%clk 0:02:50]} 9. g5 {[%clk 0:02:52]}  hxg5 {[%clk 0:02:50]} 10. hxg5 {[%clk 0:02:53]}  Rxh3 {[%clk 0:02:50]} 11. Nxh3 {[%clk 0:02:42]}  Ne4 {[%clk 0:02:50]} 12. Qh5 {[%clk 0:02:41]}  g6 {[%clk 0:02:45]} 13. Qh8 {[%clk 0:02:40]}  Nxg5 {[%clk 0:02:32]} 14. Nc3 {[%clk 0:02:30]}  Nxh3 {[%clk 0:02:21]} 15. Bxh3 {[%clk 0:02:31]}  Qf6 {[%clk 0:02:19]} 16. Nxd5 {[%clk 0:02:14]}  Qxh8 {[%clk 0:02:04]} 17. Nxc7+ {[%clk 0:02:14]}  Kd8 {[%clk 0:02:04]} 18. Nxe6+ {[%clk 0:02:14]}  fxe6 {[%clk 0:02:04]} 19. Bxh8 {[%clk 0:02:15]}  Ke7 {[%clk 0:02:02]} 20. Bd4 {[%clk 0:02:11]}  Kf7 {[%clk 0:01:58]} 21. Ke2 {[%clk 0:02:07]}  Bg7 {[%clk 0:01:57]} 22. Bxe6+ {[%clk 0:01:59]}  Kxe6 {[%clk 0:01:54]} 23. Bxg7 {[%clk 0:02:00]}  Rc8 {[%clk 0:01:52]} 24. c3 {[%clk 0:01:45]}  Nc5 {[%clk 0:01:40]} 25. Bd4 {[%clk 0:01:43]}  Be4 {[%clk 0:01:36]} 26. Rg1 {[%clk 0:01:39]}  Bd3+ {[%clk 0:01:34]} 27. Ke1 {[%clk 0:01:37]}  Nd7 {[%clk 0:01:34]} 28. Rg5 {[%clk 0:01:33]}  Nc5 {[%clk 0:01:28]} 29. f3 {[%clk 0:01:27]}  Rf8 {[%clk 0:01:12]} 30. f4 {[%clk 0:01:15]}  Kd6 {[%clk 0:00:59]} 31. Be5+ {[%clk 0:00:50]}  Ke6 {[%clk 0:00:56]} 32. Bd4 {[%clk 0:00:50]}  Na4 {[%clk 0:00:38]} 33. Kf2 {[%clk 0:00:47]}  Rf7 {[%clk 0:00:22]} 34. e4 {[%clk 0:00:45]}  Rh7 {[%clk 0:00:19]} 35. Rxg6+ {[%clk 0:00:42]}  Kf7 {[%clk 0:00:20]} 36. Rf6+ {[%clk 0:00:37]}  Ke7 {[%clk 0:00:20]} 37. e5 {[%clk 0:00:33]}  Rh2+ {[%clk 0:00:19]} 38. Kg3 {[%clk 0:00:26]}  Rxd2 {[%clk 0:00:19]} 39. f5 {[%clk 0:00:25]}  Rd1 {[%clk 0:00:17]} 40. Re6+ {[%clk 0:00:22]}  Kf7 {[%clk 0:00:17]} 41. Rd6 {[%clk 0:00:18]}  Rf1 {[%clk 0:00:15]} 42. e6+ {[%clk 0:00:15]}  Ke8 {[%clk 0:00:13]} 43. f6 {[%clk 0:00:14]}  Nc5 {[%clk 0:00:08]} 44. Bxc5 {[%clk 0:00:07]}  bxc5 {[%clk 0:00:09]} 45. b6 {[%clk 0:00:07]}  Be4 {[%clk 0:00:07]} 46. e7 {[%clk 0:00:05]}  Rg1+ {[%clk 0:00:06]} 47. Kf4 {[%clk 0:00:04]}  Bd5 {[%clk 0:00:06]} 48. Rxd5 {[%clk 0:00:04]}  Rf1+ {[%clk 0:00:06]} 49. Ke5 {[%clk 0:00:04]}  Re1+ {[%clk 0:00:06]} 50. Kd6 {[%clk 0:00:04]}  Kf7 {[%clk 0:00:04]} 51. Kd7 {[%clk 0:00:03]}  Kxf6 {[%clk 0:00:03]} 52. b7 {[%clk 0:00:03]}  Rxe7+ {[%clk 0:00:02]} 53. Kc8 {[%clk 0:00:04]}  Re8+ {[%clk 0:00:02]} 54. Rd8 {[%clk 0:00:04]}  Rxd8+ {[%clk 0:00:01]} 55. Kxd8 {[%clk 0:00:05]}  a4 {[%clk 0:00:02]} 56. Kc7 {[%clk 0:00:05]} 1-0


[Site "https://www.chess.com"]

[Event "Titled Tuesday Blitz April 12 Early 2022"]
[White "Ovezdurdyyeva, Jemal"]
[Black "Pesotskiy, Mikhail"]
[WhiteFideId "14001888"]
[BlackFideId "34164453"]
[WhiteElo "1946"]
[BlackElo "2010"]
[Result "0-1"]
[Round "11"]
[TimeControl "180+1"]
[Date "2022.04.13"]
[WhiteClock "0:00:03"]
[BlackClock "0:00:19"]

1. e4 {[%clk 0:03:00]}  e6 {[%clk 0:03:00]} 2. d4 {[%clk 0:03:00]}  d5 {[%clk 0:03:00]} 3. Nc3 {[%clk 0:02:58]}  Bb4 {[%clk 0:03:00]} 4. e5 {[%clk 0:02:51]}  c5 {[%clk 0:03:01]} 5. Be3 {[%clk 0:02:43]}  Nc6 {[%clk 0:02:59]} 6. a3 {[%clk 0:02:41]}  cxd4 {[%clk 0:02:59]} 7. Bxd4 {[%clk 0:02:38]}  Ba5 {[%clk 0:02:47]} 8. Nf3 {[%clk 0:02:21]}  Nge7 {[%clk 0:02:47]} 9. Bc5 {[%clk 0:02:13]}  Ng6 {[%clk 0:02:35]} 10. Bb5 {[%clk 0:02:06]}  Bb6 {[%clk 0:02:19]} 11. Bxb6 {[%clk 0:01:50]}  Qxb6 {[%clk 0:02:18]} 12. O-O {[%clk 0:01:50]}  O-O {[%clk 0:02:18]} 13. Qe2 {[%clk 0:01:42]}  a6 {[%clk 0:01:45]} 14. Bd3 {[%clk 0:01:31]}  Qxb2 {[%clk 0:01:45]} 15. Na4 {[%clk 0:01:30]}  Nd4 {[%clk 0:01:15]} 16. Nxb2 {[%clk 0:01:22]}  Nxe2+ {[%clk 0:01:16]} 17. Bxe2 {[%clk 0:01:23]}  Bd7 {[%clk 0:01:17]} 18. c4 {[%clk 0:01:19]}  Bc6 {[%clk 0:01:14]} 19. c5 {[%clk 0:01:15]}  Nf4 {[%clk 0:01:11]} 20. Rfe1 {[%clk 0:01:12]}  Rac8 {[%clk 0:01:10]} 21. Bf1 {[%clk 0:01:06]}  Bd7 {[%clk 0:01:06]} 22. Rac1 {[%clk 0:01:04]}  Rc7 {[%clk 0:01:06]} 23. g3 {[%clk 0:01:03]}  Ng6 {[%clk 0:01:06]} 24. Bd3 {[%clk 0:00:57]}  Rfc8 {[%clk 0:01:07]} 25. Bxg6 {[%clk 0:00:57]}  hxg6 {[%clk 0:01:06]} 26. Nd3 {[%clk 0:00:58]}  Bb5 {[%clk 0:01:05]} 27. Red1 {[%clk 0:00:29]}  Bxd3 {[%clk 0:00:47]} 28. Rxd3 {[%clk 0:00:30]}  Rxc5 {[%clk 0:00:48]} 29. Rb1 {[%clk 0:00:23]}  b5 {[%clk 0:00:48]} 30. Kg2 {[%clk 0:00:20]}  f6 {[%clk 0:00:49]} 31. Rd4 {[%clk 0:00:19]}  Kf7 {[%clk 0:00:48]} 32. a4 {[%clk 0:00:18]}  Rc4 {[%clk 0:00:48]} 33. Rxc4 {[%clk 0:00:17]}  bxc4 {[%clk 0:00:49]} 34. Rb6 {[%clk 0:00:15]}  c3 {[%clk 0:00:46]} 35. Rb7+ {[%clk 0:00:14]}  Kf8 {[%clk 0:00:45]} 36. Rb1 {[%clk 0:00:14]}  Rc4 {[%clk 0:00:44]} 37. Rc1 {[%clk 0:00:13]}  d4 {[%clk 0:00:44]} 38. a5 {[%clk 0:00:13]}  d3 {[%clk 0:00:43]} 39. Kf1 {[%clk 0:00:12]}  d2 {[%clk 0:00:43]} 40. Nxd2 {[%clk 0:00:12]}  cxd2 {[%clk 0:00:43]} 41. Rd1 {[%clk 0:00:12]}  Rd4 {[%clk 0:00:29]} 42. exf6 {[%clk 0:00:10]}  gxf6 {[%clk 0:00:30]} 43. Ke2 {[%clk 0:00:10]}  Rd5 {[%clk 0:00:31]} 44. Rxd2 {[%clk 0:00:10]}  Rxa5 {[%clk 0:00:31]} 45. Rd7 {[%clk 0:00:11]}  Rd5 {[%clk 0:00:26]} 46. Ra7 {[%clk 0:00:10]}  Rd6 {[%clk 0:00:24]} 47. Ke3 {[%clk 0:00:10]}  e5 {[%clk 0:00:21]} 48. h4 {[%clk 0:00:10]}  f5 {[%clk 0:00:20]} 49. Kf3 {[%clk 0:00:10]}  Rd3+ {[%clk 0:00:20]} 50. Ke2 {[%clk 0:00:10]}  Ra3 {[%clk 0:00:21]} 51. Kd2 {[%clk 0:00:09]}  e4 {[%clk 0:00:20]} 52. Ke2 {[%clk 0:00:09]}  a5 {[%clk 0:00:17]} 53. Kd2 {[%clk 0:00:09]}  a4 {[%clk 0:00:17]} 54. Ke2 {[%clk 0:00:09]}  Ra2+ {[%clk 0:00:18]} 55. Ke3 {[%clk 0:00:09]}  a3 {[%clk 0:00:18]} 56. Kd4 {[%clk 0:00:03]}  Rxf2 {[%clk 0:00:18]} 57. Rxa3 {[%clk 0:00:03]}  Kg7 {[%clk 0:00:16]} 58. Ke5 {[%clk 0:00:02]}  Rf3 {[%clk 0:00:14]} 59. Ra7+ {[%clk 0:00:03]}  Kh6 {[%clk 0:00:14]} 60. Kf6 {[%clk 0:00:02]}  Rxg3 {[%clk 0:00:14]} 61. Ra8 {[%clk 0:00:02]}  Kh5 {[%clk 0:00:14]} 62. Rh8+ {[%clk 0:00:02]}  Kg4 {[%clk 0:00:15]} 63. Kxg6 {[%clk 0:00:03]}  f4 {[%clk 0:00:15]} 64. h5 {[%clk 0:00:03]}  e3 {[%clk 0:00:16]} 65. h6 {[%clk 0:00:04]}  Rh3 {[%clk 0:00:17]} 66. h7 {[%clk 0:00:03]}  Kf3 {[%clk 0:00:17]} 67. Rf8 {[%clk 0:00:02]}  e2 {[%clk 0:00:17]} 68. Re8 {[%clk 0:00:02]}  Kf2 {[%clk 0:00:17]} 69. Re5 {[%clk 0:00:02]}  f3 {[%clk 0:00:17]} 70. Rh5 {[%clk 0:00:02]}  Rxh5 {[%clk 0:00:17]} 71. Kxh5 {[%clk 0:00:03]}  e1=Q {[%clk 0:00:18]} 72. h8=Q {[%clk 0:00:03]}  Qh1+ {[%clk 0:00:19]} 0-1


[Site "https://www.chess.com"]

[Event "Titled Tuesday Blitz April 12 Early 2022"]
[White "Pichot, Alan"]
[Black "Manolache, Marius"]
[WhiteFideId "110973"]
[BlackFideId "1201530"]
[WhiteElo "2579"]
[BlackElo "2364"]
[Result "1-0"]
[Round "11"]
[TimeControl "180+1"]
[Date "2022.04.12"]
[WhiteClock "0:00:49"]
[BlackClock "0:00:16"]

1. e4 {[%clk 0:02:59]}  c5 {[%clk 0:02:59]} 2. Nf3 {[%clk 0:02:52]}  e6 {[%clk 0:02:59]} 3. d4 {[%clk 0:02:52]}  cxd4 {[%clk 0:02:59]} 4. Nxd4 {[%clk 0:02:52]}  a6 {[%clk 0:02:59]} 5. Nc3 {[%clk 0:02:50]}  Qc7 {[%clk 0:02:58]} 6. Bd3 {[%clk 0:02:49]}  d6 {[%clk 0:02:58]} 7. O-O {[%clk 0:02:48]}  Nd7 {[%clk 0:02:58]} 8. Qe2 {[%clk 0:02:48]}  Ngf6 {[%clk 0:02:55]} 9. a4 {[%clk 0:02:48]}  b6 {[%clk 0:02:54]} 10. f4 {[%clk 0:02:47]}  Bb7 {[%clk 0:02:53]} 11. Bd2 {[%clk 0:02:47]}  Be7 {[%clk 0:02:51]} 12. Rae1 {[%clk 0:02:47]}  h5 {[%clk 0:02:50]} 13. Rf3 {[%clk 0:02:45]}  Nc5 {[%clk 0:02:41]} 14. Rh3 {[%clk 0:02:44]}  h4 {[%clk 0:02:31]} 15. b4 {[%clk 0:02:41]}  Nxd3 {[%clk 0:02:30]} 16. cxd3 {[%clk 0:02:42]}  Rc8 {[%clk 0:02:26]} 17. Nf3 {[%clk 0:02:30]}  d5 {[%clk 0:02:15]} 18. e5 {[%clk 0:02:28]}  Nd7 {[%clk 0:02:02]} 19. Nd1 {[%clk 0:02:17]}  a5 {[%clk 0:01:51]} 20. b5 {[%clk 0:02:12]}  g6 {[%clk 0:01:42]} 21. Nd4 {[%clk 0:02:11]}  Nc5 {[%clk 0:01:40]} 22. Nc3 {[%clk 0:02:10]}  Qd8 {[%clk 0:01:36]} 23. Kh1 {[%clk 0:02:09]}  Rh5 {[%clk 0:01:35]} 24. Qg4 {[%clk 0:02:08]}  Qd7 {[%clk 0:01:32]} 25. Rc1 {[%clk 0:01:58]}  Kf8 {[%clk 0:01:30]} 26. Rf1 {[%clk 0:01:56]}  Ke8 {[%clk 0:01:29]} 27. Be1 {[%clk 0:01:37]}  Qd8 {[%clk 0:01:24]} 28. Bf2 {[%clk 0:01:23]}  Rc7 {[%clk 0:01:18]} 29. Kg1 {[%clk 0:01:09]}  Ne4 {[%clk 0:01:08]} 30. dxe4 {[%clk 0:01:06]}  dxe4 {[%clk 0:01:03]} 31. Nxe6 {[%clk 0:01:06]}  Bc8 {[%clk 0:00:54]} 32. Qxh5 {[%clk 0:00:50]}  gxh5 {[%clk 0:00:45]} 33. Nxd8 {[%clk 0:00:51]}  Bxh3 {[%clk 0:00:43]} 34. Nd5 {[%clk 0:00:51]}  Rc2 {[%clk 0:00:29]} 35. Nxe7 {[%clk 0:00:48]}  Bxg2 {[%clk 0:00:22]} 36. Kxg2 {[%clk 0:00:48]}  e3 {[%clk 0:00:21]} 37. Ndc6 {[%clk 0:00:47]}  exf2 {[%clk 0:00:19]} 38. Rxf2 {[%clk 0:00:48]}  h3+ {[%clk 0:00:19]} 39. Kf3 {[%clk 0:00:48]}  Rc3+ {[%clk 0:00:18]} 40. Ke4 {[%clk 0:00:49]}  Rc4+ {[%clk 0:00:18]} 41. Kf5 {[%clk 0:00:49]}  Rxa4 {[%clk 0:00:18]} 42. Rd2 {[%clk 0:00:50]}  Kf8 {[%clk 0:00:16]} 43. Rd8+ {[%clk 0:00:50]}  Kg7 {[%clk 0:00:17]} 44. Rg8+ {[%clk 0:00:50]}  Kh7 {[%clk 0:00:18]} 45. Nd8 {[%clk 0:00:47]}  Ra2 {[%clk 0:00:15]} 46. Nxf7 {[%clk 0:00:47]}  Rg2 {[%clk 0:00:16]} 47. Ng5+ {[%clk 0:00:48]}  Kh6 {[%clk 0:00:16]} 48. Rg6# {[%clk 0:00:49]} 1-0


[Site "https://www.chess.com"]

[Event "Titled Tuesday Blitz April 12 Early 2022"]
[White "Politov, Pavel Y."]
[Black "Gatterer, Florian"]
[WhiteFideId "24110515"]
[BlackFideId "811688"]
[WhiteElo "2090"]
[BlackElo "2218"]
[Result "1/2-1/2"]
[Round "11"]
[TimeControl "180+1"]
[Date "2022.04.13"]
[WhiteClock "0:00:04"]
[BlackClock "0:00:39"]

1. e4 {[%clk 0:02:58]}  e5 {[%clk 0:02:57]} 2. Nf3 {[%clk 0:02:57]}  Nc6 {[%clk 0:02:57]} 3. Bc4 {[%clk 0:02:56]}  Bc5 {[%clk 0:02:57]} 4. O-O {[%clk 0:02:55]}  Nf6 {[%clk 0:02:57]} 5. d3 {[%clk 0:02:54]}  O-O {[%clk 0:02:53]} 6. Nbd2 {[%clk 0:02:45]}  d6 {[%clk 0:02:48]} 7. c3 {[%clk 0:02:45]}  a5 {[%clk 0:02:47]} 8. a4 {[%clk 0:02:44]}  h6 {[%clk 0:02:45]} 9. h3 {[%clk 0:02:43]}  Re8 {[%clk 0:02:45]} 10. Re1 {[%clk 0:02:43]}  Be6 {[%clk 0:02:45]} 11. Qb3 {[%clk 0:02:38]}  Bxc4 {[%clk 0:02:44]} 12. Nxc4 {[%clk 0:02:38]}  Qc8 {[%clk 0:02:39]} 13. Be3 {[%clk 0:02:37]}  Bxe3 {[%clk 0:02:37]} 14. Nxe3 {[%clk 0:02:38]}  b6 {[%clk 0:02:32]} 15. Nf5 {[%clk 0:02:22]}  Ne7 {[%clk 0:02:30]} 16. Nxe7+ {[%clk 0:02:16]}  Rxe7 {[%clk 0:02:29]} 17. Nh4 {[%clk 0:02:16]}  Qe6 {[%clk 0:02:24]} 18. Qxe6 {[%clk 0:02:08]}  Rxe6 {[%clk 0:02:21]} 19. Nf5 {[%clk 0:02:05]}  Kh7 {[%clk 0:02:20]} 20. Ne3 {[%clk 0:02:00]}  g6 {[%clk 0:02:20]} 21. g3 {[%clk 0:01:59]}  h5 {[%clk 0:02:19]} 22. f4 {[%clk 0:01:58]}  exf4 {[%clk 0:02:13]} 23. gxf4 {[%clk 0:01:58]}  Rae8 {[%clk 0:02:13]} 24. Kf2 {[%clk 0:01:52]}  c6 {[%clk 0:02:06]} 25. f5 {[%clk 0:01:51]}  R6e7 {[%clk 0:02:01]} 26. fxg6+ {[%clk 0:01:43]}  fxg6 {[%clk 0:02:01]} 27. Nc4 {[%clk 0:01:43]}  d5 {[%clk 0:01:52]} 28. exd5 {[%clk 0:00:54]}  Nxd5 {[%clk 0:01:41]} 29. Rxe7+ {[%clk 0:00:41]}  Rxe7 {[%clk 0:01:41]} 30. Re1 {[%clk 0:00:40]}  Rxe1 {[%clk 0:01:40]} 31. Kxe1 {[%clk 0:00:41]}  g5 {[%clk 0:01:34]} 32. Ne5 {[%clk 0:00:39]}  c5 {[%clk 0:01:25]} 33. Nd7 {[%clk 0:00:30]}  Nf4 {[%clk 0:01:23]} 34. Nxb6 {[%clk 0:00:20]}  Nxd3+ {[%clk 0:01:04]} 35. Kd2 {[%clk 0:00:15]}  Nf4 {[%clk 0:01:03]} 36. Nc4 {[%clk 0:00:08]}  Nxh3 {[%clk 0:01:01]} 37. Nxa5 {[%clk 0:00:04]}  g4 {[%clk 0:01:02]} 38. Nc4 {[%clk 0:00:03]}  g3 {[%clk 0:01:00]} 39. Ne3 {[%clk 0:00:04]}  Nf4 {[%clk 0:01:00]} 40. a5 {[%clk 0:00:04]}  h4 {[%clk 0:00:57]} 41. a6 {[%clk 0:00:03]}  Ne6 {[%clk 0:00:57]} 42. a7 {[%clk 0:00:01]}  Nc7 {[%clk 0:00:56]} 43. Ke2 {[%clk 0:00:01]}  h3 {[%clk 0:00:55]} 44. Kf3 {[%clk 0:00:01]}  g2 {[%clk 0:00:50]} 45. Kf2 {[%clk 0:00:02]}  Kg6 {[%clk 0:00:50]} 46. Ng4 {[%clk 0:00:02]}  Kf5 {[%clk 0:00:48]} 47. Nh2 {[%clk 0:00:02]}  Ke4 {[%clk 0:00:47]} 48. b4 {[%clk 0:00:02]}  cxb4 {[%clk 0:00:45]} 49. cxb4 {[%clk 0:00:03]}  Kd4 {[%clk 0:00:45]} 50. Nf3+ {[%clk 0:00:03]}  Kc4 {[%clk 0:00:42]} 51. Kg3 {[%clk 0:00:04]}  Kxb4 {[%clk 0:00:40]} 52. Kxh3 {[%clk 0:00:04]}  g1=Q {[%clk 0:00:40]} 53. Nxg1 {[%clk 0:00:03]}  Kb5 {[%clk 0:00:40]} 54. a8=Q {[%clk 0:00:04]}  Nxa8 {[%clk 0:00:39]} 1/2-1/2


[Site "https://www.chess.com"]